fUST/lending_fUST_20250719
["ID","MTS","AMOUNT","RATE_DAILY","PERIOD"]
[373080082,1752856234095,-500.0,0.0001646,2]
[373080085,1752856234105,-223.86467968,0.0001646,2]
[373080087,1752856234115,-500.0,0.0001646,2]
[373080090,1752856234126,-500.0,0.0001646,2]
[373080092,1752856234137,-196.41921619,0.0001646,2]
[373080094,1752856234147,-400.0,0.0001646,2]
[373080096,1752856234158,-540.33946365,0.0001646,2]
[373080098,1752856234169,-500.0,0.0001646,2]
[373080100,1752856234179,-460.0,0.00016461,2]
[373080102,1752856234190,-460.0,0.00016461,2]
[373080103,1752856234200,-460.0,0.00016461,2]
[373080104,1752856234211,-460.0,0.00016461,2]
[373080105,1752856234221,-460.0,0.00016461,2]
[373080106,1752856234232,-460.0,0.00016461,2]
[373080107,1752856234242,-460.0,0.00016461,2]
[373080108,1752856234252,-460.0,0.00016461,2]
[373080109,1752856234262,-460.0,0.00016461,2]
[373080110,1752856234271,-460.0,0.00016461,2]
[373080111,1752856234281,-332.59587824,0.00016461,2]
[373080112,1752856234290,-460.0,0.00016461,2]
[373080113,1752856234299,-460.0,0.00016461,2]
[373080114,1752856234309,-460.0,0.00016461,2]
[373080115,1752856234319,-596.94653153,0.00016461,2]
[373080116,1752856234328,-163.82703745,0.00016461,2]
[373080117,1752856234338,-460.0,0.00016461,2]
[373080118,1752856234348,-460.0,0.00016461,2]
[373080119,1752856234359,-460.0,0.00016461,2]
[373080121,1752856234369,-460.0,0.00016461,2]
[373080122,1752856234379,-1481.43,0.00016461,2]
[373080124,1752856234389,-460.0,0.00016461,2]
[373080126,1752856234398,-924.82120302,0.00016461,2]
[373080127,1752856234407,-329.96967716,0.00016461,2]
[373080128,1752856234417,-924.82120302,0.00016461,2]
[373080129,1752856234426,-924.82120302,0.00016461,2]
[373080130,1752856234435,-924.82120302,0.00016461,2]
[373080132,1752856234445,-50000.0,0.00016461,2]
[373080133,1752856234455,-461.19291933,0.00016462,2]
[373080135,1752856234464,-460.0,0.00016462,2]
[373080136,1752856234474,-536.49488777,0.00016462,2]
[373080137,1752856234483,-460.0,0.00016462,2]
[373080138,1752856234493,-461.23892756,0.00016462,2]
[373080139,1752856234502,-463.51778143,0.00016462,2]
[373080140,1752856234513,-461.53590866,0.00016462,2]
[373080141,1752856234523,-460.0,0.00016462,2]
[373080142,1752856234532,-460.0,0.00016462,2]
[373080143,1752856234542,-463.90400341,0.00016462,2]
[373080144,1752856234551,-462.39593363,0.00016462,2]
[373080145,1752856234561,-462.10510975,0.00016462,2]
[373080146,1752856234570,-462.68276146,0.00016462,2]
[373080147,1752856234579,-461.8128757,0.00016462,2]
[373080148,1752856234589,-462.94090629,0.00016462,2]
[373080149,1752856234599,-460.0,0.00016462,2]
[373080150,1752856234609,-460.0,0.00016462,2]
[373080151,1752856234618,-462.29067726,0.00016462,2]
[373080152,1752856234627,-465.24238562,0.00016462,2]
[373080153,1752856234637,-461.36121809,0.00016462,2]
[373080154,1752856234646,-460.0,0.00016462,2]
[373080155,1752856234656,-500.0,0.00016462,2]
[373080156,1752856234666,-462.36153275,0.00016462,2]
[373080157,1752856234676,-460.0,0.00016462,2]
[373080158,1752856234685,-460.0,0.00016462,2]
[373080159,1752856234694,-1820.48,0.00016462,2]
[373080160,1752856234704,-536.49,0.00016462,2]
[373080161,1752856234714,-460.0,0.00016462,2]
[373080162,1752856234723,-460.0,0.00016462,2]
[373080163,1752856234732,-1583.05,0.00016462,2]
[373080164,1752856234742,-3439.94,0.00016462,2]
[373080165,1752856234752,-460.0,0.00016462,2]
[373080166,1752856234762,-460.0,0.00016462,2]
[373080167,1752856234771,-1425.41,0.00016462,2]
[373080168,1752856234781,-460.0,0.00016462,2]
[373080169,1752856234792,-460.0,0.00016462,2]
[373080170,1752856234802,-1698.66,0.00016462,2]
[373080171,1752856234812,-460.0,0.00016462,2]
[373080172,1752856234821,-460.0,0.00016463,2]
[373080173,1752856234831,-373.50511539,0.00016463,2]
[373080174,1752856234842,-460.0,0.00016463,2]
[373080175,1752856234852,-460.0,0.00016463,2]
[373080176,1752856234861,-460.0,0.00016463,2]
[373080177,1752856234872,-460.0,0.00016463,2]
[373080178,1752856234883,-460.0,0.00016463,2]
[373080179,1752856234892,-460.0,0.00016463,2]
[373080180,1752856234902,-460.0,0.00016463,2]
[373080181,1752856234911,-460.0,0.00016463,2]
[373080182,1752856234921,-460.0,0.00016463,2]
[373080183,1752856234931,-428.01824685,0.00016463,2]
[373080184,1752856234941,-460.93430916,0.00016463,2]
[373080185,1752856234951,-460.0,0.00016463,2]
[373080186,1752856234962,-305.2760088,0.00016463,2]
[373080187,1752856234972,-976.96646098,0.00016463,2]
[373080188,1752856234981,-460.0,0.00016463,2]
[373080189,1752856234990,-460.0,0.00016463,2]
[373080190,1752856235000,-460.0,0.00016463,2]
[373080191,1752856235010,-460.0,0.00016463,2]
[373080192,1752856235020,-460.0,0.00016463,2]
[373080193,1752856235030,-24.98231017,0.00016463,2]
[373080211,1752856238730,-466.77810299,0.0001646,2]
[373080212,1752856238740,-460.0,0.0001646,2]
[373080213,1752856238749,-460.0,0.0001646,2]
[373080214,1752856238758,-924.82120302,0.00016461,2]
[373080215,1752856238767,-924.82120302,0.00016461,2]
[373080216,1752856238776,-924.82120302,0.00016461,2]
[373080217,1752856238786,-924.82120302,0.00016461,2]
[373080218,1752856238799,-924.82120302,0.00016461,2]
[373080219,1752856238808,-924.82120302,0.00016461,2]
[373080220,1752856238817,-924.82120302,0.00016461,2]
[373080221,1752856238826,-924.82120302,0.00016461,2]
[373080222,1752856238835,-924.82120302,0.00016461,2]
[373080223,1752856238846,-924.82120302,0.00016461,2]
[373080224,1752856238855,-924.82120302,0.00016461,2]
[373080225,1752856238864,-924.82120302,0.00016461,2]
[373080226,1752856238873,-924.82120302,0.00016461,2]
[373080227,1752856238883,-924.82120302,0.00016461,2]
[373080228,1752856238892,-924.82120302,0.00016461,2]
[373080229,1752856238901,-924.82120302,0.00016461,2]
[373080230,1752856238911,-924.82120302,0.00016461,2]
[373080231,1752856238920,-544.69915892,0.00016463,2]
[373080232,1752856238929,-460.0,0.00016463,2]
[373080233,1752856238938,-460.0,0.00016463,2]
[373080234,1752856238950,-460.0,0.00016463,2]
[373080235,1752856238960,-458.53833289,0.00016463,2]
[373080236,1752856238969,-460.0,0.00016463,2]
[373080237,1752856238977,-460.0,0.00016463,2]
[373080238,1752856238986,-460.0,0.00016463,2]
[373080239,1752856238997,-460.0,0.00016463,2]
[373080240,1752856239120,-460.0,0.00016463,2]
[373080241,1752856239130,-460.0,0.00016463,2]
[373080242,1752856239139,-460.0,0.00016463,2]
[373080243,1752856239148,-460.0,0.00016463,2]
[373080244,1752856239157,-460.0,0.00016463,2]
[373080245,1752856239166,-460.0,0.00016463,2]
[373080246,1752856239175,-462.81881752,0.00016463,2]
[373080247,1752856239185,-460.0,0.00016463,2]
[373080248,1752856239196,-460.0,0.00016463,2]
[373080249,1752856239209,-500.0,0.00016463,2]
[373080250,1752856239231,-500.0,0.00016463,2]
[373080251,1752856239240,-460.0,0.00016463,2]
[373080252,1752856239249,-460.0,0.00016463,2]
[373080253,1752856239259,-460.0,0.00016463,2]
[373080254,1752856239267,-460.0,0.00016463,2]
[373080255,1752856239276,-460.0,0.00016463,2]
[373080256,1752856239286,-460.0,0.00016463,2]
[373080257,1752856239295,-460.0,0.00016463,2]
[373080258,1752856239304,-460.0,0.00016463,2]
[373080259,1752856239313,-502.36379761,0.00016463,2]
[373080260,1752856239322,-460.0,0.00016463,2]
[373080261,1752856239331,-460.0,0.00016463,2]
[373080262,1752856239340,-460.0,0.00016463,2]
[373080263,1752856239349,-460.0,0.00016463,2]
[373080264,1752856239359,-460.0,0.00016463,2]
[373080266,1752856239369,-460.0,0.00016463,2]
[373080267,1752856239378,-460.0,0.00016463,2]
[373080268,1752856239387,-460.0,0.00016463,2]
[373080270,1752856239396,-608.16,0.00016463,2]
[373080271,1752856239406,-460.0,0.00016463,2]
[373080272,1752856239415,-460.0,0.00016463,2]
[373080274,1752856239424,-460.0,0.00016463,2]
[373080276,1752856239433,-460.0,0.00016463,2]
[373080277,1752856239444,-335.43509946,0.00016463,2]
[373080279,1752856239453,-460.0,0.00016463,2]
[373080281,1752856239463,-460.0,0.00016463,2]
[373080284,1752856239472,-460.0,0.00016463,2]
[373080285,1752856239482,-460.0,0.00016463,2]
[373080287,1752856239491,-460.0,0.00016463,2]
[373080289,1752856239500,-460.0,0.00016463,2]
[373080291,1752856239510,-460.0,0.00016463,2]
[373080293,1752856239519,-460.0,0.00016463,2]
[373080296,1752856239531,-460.0,0.00016463,2]
[373080298,1752856239540,-460.0,0.00016463,2]
[373080299,1752856239549,-460.0,0.00016463,2]
[373080301,1752856239558,-466.51028585,0.00016463,2]
[373080303,1752856239568,-460.0,0.00016463,2]
[373080305,1752856239577,-460.0,0.00016463,2]
[373080308,1752856239587,-460.0,0.00016463,2]
[373080309,1752856239596,-460.0,0.00016463,2]
[373080312,1752856239606,-460.0,0.00016463,2]
[373080313,1752856239615,-460.0,0.00016463,2]
[373080316,1752856239625,-598.91,0.00016463,2]
[373080318,1752856239634,-287.90367896,0.00016463,2]
[373080320,1752856239644,-460.0,0.00016463,2]
[373080321,1752856239653,-460.0,0.00016463,2]
[373080323,1752856239662,-460.0,0.00016463,2]
[373080326,1752856239672,-460.0,0.00016463,2]
[373080328,1752856239681,-460.0,0.00016463,2]
[373080330,1752856239690,-460.0,0.00016463,2]
[373080332,1752856239702,-289.79576107,0.00016463,2]
[373080334,1752856239712,-460.0,0.00016463,2]
[373080335,1752856239721,-460.0,0.00016463,2]
[373080337,1752856239730,-460.0,0.00016463,2]
[373080339,1752856239740,-460.68913756,0.00016463,2]
[373080341,1752856239750,-460.0,0.00016463,2]
[373080344,1752856239759,-460.0,0.00016463,2]
[373080345,1752856239769,-460.0,0.00016463,2]
[373080347,1752856239778,-460.0,0.00016463,2]
[373080350,1752856239790,-460.0,0.00016463,2]
[373080352,1752856239805,-460.0,0.00016463,2]
[373080354,1752856239815,-460.0,0.00016463,2]
[373080355,1752856239824,-460.0,0.00016463,2]
[373080357,1752856239835,-460.0,0.00016463,2]
[373080359,1752856239844,-786.55,0.00016463,2]
[373080361,1752856239853,-460.0,0.00016463,2]
[373080363,1752856239863,-460.0,0.00016463,2]
[373080365,1752856239873,-460.0,0.00016463,2]
[373080367,1752856239883,-460.0,0.00016463,2]
[373080369,1752856239892,-408.08,0.00016463,2]
[373080371,1752856239902,-460.0,0.00016464,2]
[373080373,1752856239911,-460.0,0.00016464,2]
[373080375,1752856239921,-460.0,0.00016464,2]
[373080377,1752856239930,-460.0,0.00016464,2]
[373080379,1752856239939,-460.0,0.00016464,2]
[373080381,1752856239951,-460.0,0.00016464,2]
[373080383,1752856239960,-698.51,0.00016464,2]
[373080385,1752856239969,-460.0,0.00016464,2]
[373080387,1752856239978,-460.0,0.00016464,2]
[373080389,1752856239988,-460.0,0.00016464,2]
[373080391,1752856239997,-460.0,0.00016464,2]
[373080393,1752856240007,-460.0,0.00016464,2]
[373080396,1752856240017,-460.0,0.00016464,2]
[373080398,1752856240027,-460.0,0.00016464,2]
[373080400,1752856240036,-460.0,0.00016464,2]
[373080402,1752856240045,-460.0,0.00016464,2]
[373080404,1752856240055,-477.92,0.00016464,2]
[373080406,1752856240064,-582.44,0.00016464,2]
[373080408,1752856240074,-460.0,0.00016464,2]
[373080410,1752856240083,-460.0,0.00016464,2]
[373080412,1752856240093,-523.90077664,0.00016464,2]
[373080414,1752856240102,-949.81,0.00016464,2]
[373080416,1752856240111,-460.0,0.00016464,2]
[373080418,1752856240121,-460.0,0.00016464,2]
[373080420,1752856240130,-460.0,0.00016464,2]
[373080422,1752856240139,-460.0,0.00016464,2]
[373080424,1752856240148,-500.0,0.00016464,2]
[373080426,1752856240157,-460.0,0.00016464,2]
[373080428,1752856240167,-460.0,0.00016464,2]
[373080430,1752856240176,-500.0,0.00016465,2]
[373080432,1752856240185,-460.0,0.00016465,2]
[373080434,1752856240196,-460.0,0.00016465,2]
[373080436,1752856240206,-460.0,0.00016465,2]
[373080438,1752856240215,-460.0,0.00016465,2]
[373080440,1752856240224,-460.0,0.00016465,2]
[373080443,1752856240233,-460.0,0.00016465,2]
[373080445,1752856240243,-460.0,0.00016465,2]
[373080447,1752856240252,-496.411735,0.00016465,2]
[373080449,1752856240260,-460.0,0.00016465,2]
[373080451,1752856240269,-460.0,0.00016465,2]
[373080453,1752856240279,-460.0,0.00016465,2]
[373080456,1752856240288,-460.0,0.00016465,2]
[373080459,1752856240298,-460.0,0.00016465,2]
[373080461,1752856240307,-460.0,0.00016465,2]
[373080463,1752856240316,-460.0,0.00016465,2]
[373080465,1752856240326,-460.0,0.00016465,2]
[373080467,1752856240334,-460.0,0.00016465,2]
[373080469,1752856240343,-460.0,0.00016465,2]
[373080471,1752856240352,-500.0,0.00016465,2]
[373080473,1752856240361,-2734.91,0.00016466,2]
[373080475,1752856240370,-827.63,0.00016466,2]
[373080477,1752856240378,-460.0,0.00016466,2]
[373080479,1752856240386,-1208.84,0.00016466,2]
[373080481,1752856240393,-460.0,0.00016467,2]
[373080483,1752856240401,-1820.77,0.00016467,2]
[373080485,1752856240410,-460.0,0.00016467,2]
[373080487,1752856240417,-460.0,0.00016467,2]
[373080490,1752856240426,-1526.41,0.00016467,2]
[373080492,1752856240434,-500.0,0.00016467,2]
[373080494,1752856240441,-2703.23,0.00016467,2]
[373080496,1752856240452,-500.0,0.00016469,2]
[373080498,1752856240461,-934.77,0.0001647,2]
[373080500,1752856240470,-460.0,0.0001647,2]
[373080502,1752856240479,-500.0,0.00016476,2]
[373080503,1752856240488,-1117.67419104,0.00016477,2]
[373080505,1752856240498,-1016.69156915,0.00016638,2]
[373080507,1752856240508,-347.42058902,0.00016644,2]
[373080509,1752856240517,-150.0,0.00016721,2]
[373080511,1752856240526,-371.66227126,0.00016734,2]
[373080513,1752856240536,-460.0,0.00016734,2]
[373080515,1752856240546,-460.0,0.00016735,2]
[373080517,1752856240555,-460.0,0.00016735,2]
[373080519,1752856240564,-460.0,0.00016735,2]
[373080521,1752856240573,-460.0,0.00016735,2]
[373080524,1752856240583,-460.0,0.00016735,2]
[373080525,1752856240592,-469.22771683,0.00016735,2]
[373080528,1752856240602,-460.0,0.00016735,2]
[373080530,1752856240611,-460.0,0.00016735,2]
[373080531,1752856240621,-460.0,0.00016735,2]
[373080533,1752856240631,-460.0,0.00016735,2]
[373080536,1752856240641,-460.0,0.00016735,2]
[373080537,1752856240650,-399.39987276,0.00016735,2]
[373080539,1752856240659,-1481.43,0.00016735,2]
[373080542,1752856240669,-460.0,0.00016735,2]
[373080544,1752856240679,-460.0,0.00016736,2]
[373080546,1752856240689,-460.0,0.00016736,2]
[373080548,1752856240701,-1820.48,0.00016736,2]
[373080550,1752856240710,-536.49,0.00016736,2]
[373080552,1752856240719,-460.0,0.00016736,2]
[373080553,1752856240728,-1583.05,0.00016736,2]
[373080556,1752856240738,-3439.94,0.00016736,2]
[373080557,1752856240747,-460.0,0.00016736,2]
[373080560,1752856240757,-1425.41,0.00016736,2]
[373080562,1752856240766,-460.0,0.00016736,2]
[373080564,1752856240775,-500.0,0.00016736,2]
[373080566,1752856240785,-500.0,0.00016736,2]
[373080568,1752856240797,-460.0,0.00016736,2]
[373080570,1752856240806,-1698.66,0.00016736,2]
[373080572,1752856240815,-460.0,0.00016737,2]
[373080574,1752856240824,-600.82809579,0.00016737,2]
[373080576,1752856240835,-460.0,0.00016737,2]
[373080578,1752856240844,-460.0,0.00016737,2]
[373080580,1752856240854,-460.0,0.00016737,2]
[373080581,1752856240864,-460.0,0.00016737,2]
[373080583,1752856240874,-168.24520158,0.00016737,2]
[373080585,1752856240883,-460.0,0.00016737,2]
[373080587,1752856240893,-460.0,0.00016737,2]
[373080589,1752856240902,-460.0,0.00016737,2]
[373080591,1752856240912,-507.42949218,0.00016737,2]
[373080593,1752856240921,-460.0,0.00016737,2]
[373080595,1752856240931,-460.0,0.00016737,2]
[373080597,1752856240941,-460.0,0.00016737,2]
[373080600,1752856240952,-460.0,0.00016737,2]
[373080601,1752856240962,-460.0,0.00016737,2]
[373080604,1752856240971,-460.0,0.00016737,2]
[373080606,1752856240980,-460.0,0.00016737,2]
[373080609,1752856240990,-460.0,0.00016737,2]
[373080611,1752856240999,-460.0,0.00016737,2]
[373080613,1752856241009,-460.0,0.00016737,2]
[373080614,1752856241018,-608.16,0.00016737,2]
[373080616,1752856241028,-460.0,0.00016737,2]
[373080618,1752856241038,-460.0,0.00016737,2]
[373080621,1752856241047,-460.0,0.00016737,2]
[373080622,1752856241056,-460.0,0.00016737,2]
[373080624,1752856241065,-460.0,0.00016737,2]
[373080626,1752856241074,-460.0,0.00016737,2]
[373080628,1752856241083,-460.0,0.00016737,2]
[373080630,1752856241093,-460.0,0.00016737,2]
[373080632,1752856241102,-591.82008803,0.00016737,2]
[373080634,1752856241111,-460.0,0.00016737,2]
[373080636,1752856241120,-460.0,0.00016737,2]
[373080638,1752856241130,-460.0,0.00016737,2]
[373080640,1752856241139,-151.33233934,0.00016737,2]
[373080643,1752856241149,-460.0,0.00016737,2]
[373080645,1752856241158,-460.0,0.00016737,2]
[373080647,1752856241167,-460.0,0.00016737,2]
[373080649,1752856241177,-460.0,0.00016737,2]
[373080651,1752856241186,-598.91,0.00016737,2]
[373080653,1752856241197,-460.0,0.00016737,2]
[373080655,1752856241207,-460.0,0.00016737,2]
[373080657,1752856241216,-460.0,0.00016737,2]
[373080659,1752856241225,-460.0,0.00016737,2]
[373080661,1752856241235,-460.0,0.00016737,2]
[373080663,1752856241244,-460.0,0.00016737,2]
[373080665,1752856241253,-460.0,0.00016737,2]
[373080667,1752856241264,-460.0,0.00016737,2]
[373080669,1752856241273,-460.0,0.00016737,2]
[373080671,1752856241282,-460.0,0.00016737,2]
[373080673,1752856241291,-460.0,0.00016737,2]
[373080675,1752856241301,-540.47500646,0.00016737,2]
[373080677,1752856241311,-786.55,0.00016737,2]
[373080679,1752856241321,-460.0,0.00016737,2]
[373080681,1752856241331,-460.0,0.00016737,2]
[373080683,1752856241340,-460.0,0.00016737,2]
[373080685,1752856241350,-460.0,0.00016738,2]
[373080687,1752856241359,-460.0,0.00016738,2]
[373080689,1752856241369,-460.0,0.00016738,2]
[373080691,1752856241378,-244.33961088,0.00016738,2]
[373080693,1752856241388,-460.0,0.00016738,2]
[373080696,1752856241398,-225.43919598,0.00016738,2]
[373080698,1752856241408,-460.0,0.00016738,2]
[373080699,1752856241417,-460.0,0.00016738,2]
[373080702,1752856241427,-460.0,0.00016738,2]
[373080703,1752856241436,-460.0,0.00016738,2]
[373080705,1752856241451,-460.0,0.00016738,2]
[373080707,1752856241460,-460.0,0.00016738,2]
[373080709,1752856241470,-460.0,0.00016738,2]
[373080711,1752856241480,-460.0,0.00016738,2]
[373080713,1752856241489,-245.95488335,0.00016738,2]
[373080715,1752856241499,-460.0,0.00016738,2]
[373080717,1752856241508,-460.0,0.00016738,2]
[373080719,1752856241518,-460.0,0.00016738,2]
[373080721,1752856241528,-460.0,0.00016738,2]
[373080724,1752856241538,-240.0,0.00016738,2]
[373080726,1752856241547,-460.0,0.00016738,2]
[373080728,1752856241557,-460.0,0.00016738,2]
[373080730,1752856241566,-460.0,0.00016738,2]
[373080743,1752856241682,-460.0,0.00016738,2]
[373080745,1752856241692,-464.20634618,0.00016738,2]
[373080747,1752856241705,-460.0,0.00016738,2]
[373080749,1752856241714,-271.38510199,0.00016738,2]
[373080751,1752856241724,-460.0,0.00016738,2]
[373080753,1752856241733,-460.0,0.00016738,2]
[373080755,1752856241742,-460.0,0.00016738,2]
[373080757,1752856241752,-460.0,0.00016738,2]
[373080759,1752856241761,-460.0,0.00016738,2]
[373080761,1752856241771,-178.1833654,0.00016738,2]
[373080763,1752856241780,-460.0,0.00016738,2]
[373080765,1752856241790,-460.0,0.00016738,2]
[373080767,1752856241803,-460.0,0.00016738,2]
[373080769,1752856241812,-460.0,0.00016738,2]
[373080771,1752856241821,-698.51,0.00016738,2]
[373080773,1752856241830,-460.0,0.00016738,2]
[373080775,1752856241840,-460.0,0.00016738,2]
[373080777,1752856241849,-460.0,0.00016738,2]
[373080779,1752856241858,-460.0,0.00016738,2]
[373080781,1752856241869,-460.0,0.00016738,2]
[373080783,1752856241878,-460.0,0.00016738,2]
[373080785,1752856241888,-460.0,0.00016738,2]
[373080787,1752856241896,-460.0,0.00016738,2]
[373080789,1752856241906,-460.0,0.00016738,2]
[373080791,1752856241917,-296.25392541,0.00016738,2]
[373080793,1752856241927,-460.0,0.00016738,2]
[373080795,1752856241936,-460.0,0.00016738,2]
[373080797,1752856241949,-460.0,0.00016738,2]
[373080799,1752856241959,-460.0,0.00016738,2]
[373080801,1752856241968,-450.57019887,0.00016738,2]
[373080803,1752856241977,-460.0,0.00016738,2]
[373080805,1752856241987,-460.0,0.00016738,2]
[373080807,1752856241995,-460.0,0.00016738,2]
[373080809,1752856242005,-460.0,0.00016738,2]
[373080811,1752856242014,-460.0,0.00016738,2]
[373080813,1752856242024,-460.0,0.00016738,2]
[373080815,1752856242033,-477.92,0.00016738,2]
[373080817,1752856242042,-582.44,0.00016738,2]
[373080819,1752856242052,-460.0,0.00016738,2]
[373080821,1752856242061,-460.0,0.00016738,2]
[373080823,1752856242070,-460.0,0.00016738,2]
[373080825,1752856242080,-460.0,0.00016738,2]
[373080827,1752856242089,-282.89331643,0.00016738,2]
[373080829,1752856242098,-460.0,0.00016738,2]
[373080831,1752856242107,-460.0,0.00016738,2]
[373080833,1752856242118,-949.81,0.00016738,2]
[373080835,1752856242127,-460.0,0.00016738,2]
[373080837,1752856242137,-1689.1,0.00016738,2]
[373080839,1752856242146,-460.99258252,0.00016738,2]
[373080841,1752856242156,-460.0,0.00016738,2]
[373080843,1752856242166,-460.0,0.00016738,2]
[373080845,1752856242175,-460.0,0.00016738,2]
[373080847,1752856242185,-577.4,0.00016738,2]
[373080849,1752856242197,-185.45288124,0.00016738,2]
[373080851,1752856242207,-460.0,0.00016738,2]
[373080853,1752856242216,-460.0,0.00016738,2]
[373080855,1752856242226,-460.0,0.00016738,2]
[373080857,1752856242235,-460.0,0.00016738,2]
[373080859,1752856242245,-500.0,0.00016738,2]
[373080861,1752856242255,-460.0,0.00016738,2]
[373080863,1752856242264,-207.72306818,0.00016738,2]
[373080865,1752856242274,-460.0,0.00016738,2]
[373080867,1752856242283,-460.0,0.00016738,2]
[373080869,1752856242293,-460.0,0.00016738,2]
[373080871,1752856242303,-460.0,0.00016738,2]
[373080873,1752856242314,-471.57,0.00016738,2]
[373080875,1752856242324,-460.0,0.00016738,2]
[373080877,1752856242333,-367.49405858,0.00016738,2]
[373080879,1752856242343,-460.0,0.00016738,2]
[373080882,1752856242353,-555.91,0.00016739,2]
[373080884,1752856242363,-460.0,0.00016739,2]
[373080886,1752856242376,-460.0,0.00016739,2]
[373080888,1752856242386,-460.0,0.00016739,2]
[373080890,1752856242395,-500.0,0.00016739,2]
[373080892,1752856242405,-2734.91,0.0001674,2]
[373080894,1752856242414,-827.63,0.0001674,2]
[373080896,1752856242423,-1208.84,0.0001674,2]
[373080898,1752856242433,-1820.77,0.00016741,2]
[373080900,1752856242442,-460.0,0.00016741,2]
[373080902,1752856242455,-1526.41,0.00016741,2]
[373080904,1752856242464,-500.0,0.00016741,2]
[373080906,1752856242474,-2703.23,0.00016741,2]
[373080908,1752856242483,-934.77,0.00016744,2]
[373080910,1752856242492,-460.0,0.00016744,2]
[373080912,1752856242501,-290.57199499,0.00016751,2]
[373080915,1752856242514,-1321.85775122,0.000169,2]
[373080916,1752856242523,-251.49617328,0.00017,2]
[373080918,1752856242534,-51548.28426493,0.00017,2]
[373080921,1752856242544,-460.0,0.00017009,2]
[373080923,1752856242553,-471.32902609,0.00017009,2]
[373080925,1752856242562,-156.86,0.00017009,2]
[373080927,1752856242572,-470.42647143,0.00017009,2]
[373080929,1752856242581,-460.0,0.00017009,2]
[373080930,1752856242590,-423.82,0.00017009,2]
[373080933,1752856242600,-1481.43,0.00017009,2]
[373080935,1752856242609,-460.0,0.00017009,2]
[373080937,1752856242618,-460.0,0.0001701,2]
[373080938,1752856242628,-1820.48,0.0001701,2]
[373080941,1752856242638,-536.49,0.0001701,2]
[373080943,1752856242648,-460.0,0.0001701,2]
[373080945,1752856242657,-1583.05,0.0001701,2]
[373080947,1752856242666,-3439.94,0.0001701,2]
[373080949,1752856242676,-460.0,0.0001701,2]
[373080951,1752856242685,-1425.41,0.0001701,2]
[373080953,1752856242696,-460.0,0.0001701,2]
[373080955,1752856242705,-460.0,0.0001701,2]
[373080957,1752856242715,-1698.66,0.0001701,2]
[373080958,1752856242724,-460.0,0.00017011,2]
[373080961,1752856242734,-460.0,0.00017011,2]
[373080963,1752856242743,-460.0,0.00017011,2]
[373080964,1752856242752,-460.0,0.00017011,2]
[373080966,1752856242762,-460.0,0.00017011,2]
[373080968,1752856242771,-460.0,0.00017011,2]
[373080970,1752856242780,-460.0,0.00017011,2]
[373080972,1752856242791,-195.08788254,0.00017011,2]
[373080974,1752856242804,-460.0,0.00017011,2]
[373080976,1752856242813,-460.0,0.00017011,2]
[373080979,1752856242823,-245.13742829,0.00017011,2]